Cogmind - Beta 14 @@@ ROGUE MODE // 2024.11.16 @ 14:13:07 Player: Fangrelle Result: Destroyed by S-10 Pest with Light Assault Rifle Performance ------------- Evolutions (0) 0 Regions Visited (2) 400 Robots Destroyed (24) 120 Value Destroyed (689) 689 Prototype IDs (1) 20 Alien Tech Used (0) 0 Bonus (50) 50 TOTAL SCORE: 1279 Bonus ------- Follower Combat Kills 50 Cogmind --------- Core Integrity 0/250 Matter 175/300 Energy 280/280 System Corruption 1% Temperature Cool (5) Movement Walking (330) Ox3 Location -10/Mines Parts ------- > --- POWER (1) -------- Cooled Ion Engine > --- PROPULSION (2) --- Improved Aluminum Leg Improved Aluminum Leg > --- UTILITY (2) ------ Huge Storage Unit Recalibrator > --- WEAPON (2) ------- Light Assault Rifle Light Assault Rifle > --- INVENTORY (25) --- Cooled Ion Engine Faulty Cooled Ion Engine Faulty Cooled Ion Engine Light Angular Momentum Engine Improved Aluminum Leg Improved Aluminum Leg Compact Wheel Improved Heat Sink High-capacity Storage Unit High-capacity Battery (250) Large Matter Pod (0) Visual Processing Unit Visual Processing Unit Light Assault Rifle Grenade Launcher Grenade Launcher Rocket Launcher Datajack Mining Laser Peak State ------------ > --- POWER ------------ Cooled Ion Engine > --- PROPULSION ------- Improved Aluminum Leg Improved Aluminum Leg > --- UTILITY ---------- Huge Storage Unit Recalibrator > --- WEAPON ----------- Light Assault Rifle Light Assault Rifle > --- INVENTORY -------- Cooled Ion Engine Cooled Ion Engine Cooled Ion Engine Light Angular Momentum Engine Improved Aluminum Leg Improved Aluminum Leg Compact Wheel Improved Heat Sink High-capacity Storage Unit High-capacity Battery Large Matter Pod Visual Processing Unit Visual Processing Unit Light Assault Rifle Grenade Launcher Grenade Launcher Datajack Mining Laser [Rating: 17] Favorites ----------- Power Cooled Ion Engine Engine Cooled Ion Engine Propulsion Improved Aluminum Leg Treads Light Treads Leg Improved Aluminum Leg Wheel Compact Wheel Utility Huge Storage Unit Device Recalibrator Storage Huge Storage Unit Processor Visual Processing Unit Protection Light Armor Plating Weapon Light Assault Rifle Energy Gun EM Pulse Gun Ballistic Gun Light Assault Rifle Launcher Grenade Launcher Build | -11 -10 -10 ------- Run | Yrd Mat Min Slots Evolved . | . . . Power . | . . . Propulsion . | . . . Utility . | . . . Weapon . | . . . Parts Attached 31 | . 31 . Power 6 | . 6 . Engine 6 | . 6 . Core . | . . . Reactor . | . . . Propulsion 11 | . 11 . Treads 4 | . 4 . Leg 2 | . 2 . Wheel 5 | . 5 . Hover . | . . . Flight . | . . . Utility 6 | . 6 . Device 1 | . 1 . Storage 2 | . 2 . Processor 1 | . 1 . Hackware . | . . . Protection 2 | . 2 . Artifact . | . . . Weapon 8 | . 8 . Energy Gun 1 | . 1 . Energy Cannon . | . . . Ballistic Gun 6 | . 6 . Ballistic Cannon . | . . . Launcher 1 | . 1 . Special Weapon . | . . . Impact Weapon . | . . . Slashing Weapon . | . . . Piercing Weapon . | . . . Special Melee Weapon . | . . . Unidentified Prototypes 1 | . 1 . Parts Lost 8 | . 8 . Power 2 | . 2 . Propulsion 3 | . 3 . Utility 1 | . 1 . Weapon 2 | . 2 . Highest Loss Streak 2 | . 2 . To Critical Strikes . | . . . Average Slot Usage (%) 91 | . 87 100 Engine 13 | . 12 14 Treads 7 | . 11 . Leg 12 | . 5 28 Wheel 4 | . 7 . Device 6 | . 2 14 Storage 15 | . 15 14 Processor 1 | . 1 . Protection 1 | . 2 . Energy Gun 3 | . 4 . Ballistic Gun 23 | . 21 28 Peak Build Rating 17 | . 16 17 Average Rating 11 | . 8 16 On Entrance 9 | 6 6 16 Naked Turns . | . . . Heaviest Build 130 | 14 130 91 Greatest Support 40 | 20 40 26 Greatest Overweight (x) 8 | . 8 3 Average Overweight (x) 1 | . 1 3 Largest Inventory Capacity 25 | . 25 25 Average Capacity 17 | . 14 25 Most Carried 19 | . 18 19 Average Carried 12 | . 9 18 Final Capacity 25 | 8 25 25 Final Carried 19 | 6 17 19 Class Distribution -------------------- 100% | Mutant Dominant Class ---------------- Mutant | -10/Materials Mutant | -10/Mines Resources | -11 -10 -10 ----------- Run | Yrd Mat Min Matter Collected 687 | 200 324 163 Remotely . | . . . Salvage Created 790 | . 720 70 Parts 42 | . 39 3 Haulers Intercepted . | . . . Recyclers Shooed 3 | . 3 . Parts Field Recycled . | . . . Retrieved Matter . | . . . Parts Self-Destructed . | . . . Prevented . | . . . Kills | -11 -10 -10 ------- Run | Yrd Mat Min Combat Hostiles Destroyed 18 | . 16 2 Guns 12 | . 10 2 AOE 6 | . 6 . Classes Destroyed 7 | . 7 . Worker 1 | . 1 . Builder 1 | . 1 . Mechanic 1 | . 1 . Operator 1 | . 1 . Watcher 2 | . 2 . Swarmer 3 | . 3 . Grunt 15 | . 13 2 Best Kill Streak 6 | . 6 1 Combat Bots Only 5 | . 5 1 Max Kills in Single Turn 2 | . 2 1 Gunslinging . | . . . Exploded 2 | . 2 . Melee . | . . . Uniques/NPCs Destroyed . | . . . Combat | -11 -10 -10 -------- Run | Yrd Mat Min Hostile Shots Fired 125 | . 103 22 Missed 36 | . 26 10 Damage Taken 1061 | . 927 134 Core 254 | . 205 49 Absorbed by Shields . | . . . Core Remaining (%) 100 | 100 . . Volleys Fired 96 | . 88 8 Largest 2 | . 2 2 Hottest 60 | . 60 40 Shots Fired 164 | . 148 16 Gun 156 | . 140 16 Cannon . | . . . Launcher 8 | . 8 . Special . | . . . Kinetic 130 | . 114 16 Thermal . | . . . Explosive 8 | . 8 . Electromagnetic 26 | . 26 . Robot Hit Streak 9 | . 9 4 Robot Miss Streak 4 | . 4 1 Penetration Max . | . . . Secondary Targets 1 | . . 1 Max Gunslinging Chain 1 | . . 1 Shots Hit Robots 93 | . 82 11 Core Hits 47 | . 39 8 Critical Kills . | . . . Critical Parts Destroyed . | . . . Critical Strikes . | . . . Melee Attacks . | . . . Impact . | . . . Slashing . | . . . Piercing . | . . . Sneak Attacks . | . . . Combat Hostiles . | . . . Follow-up Attacks . | . . . Damage Inflicted 1361 | . 1273 88 Guns 975 | . 887 88 Cannons . | . . . Explosions 386 | . 386 . Melee . | . . . Ramming . | . . . Kinetic 811 | . 723 88 Thermal 27 | . 27 . Explosive 359 | . 359 . Electromagnetic 164 | . 164 . Impact . | . . . Slashing . | . . . Piercing . | . . . Highest Corruption 1 | . 1 1 Average Corruption 1 | . 1 1 Corruption Purged . | . . . Corruption Blocked . | . . . Effects 10 | . 6 4 Message Errors 3 | . 1 2 Matter Fused 1 | . 1 . Heat Flow Errors 2 | . 2 . Energy Discharges 2 | . 1 1 Data Loss (minor) 2 | . 1 1 Overload Shots . | . . . Overflow Damage 33 | . 33 . Projectiles . | . . . Explosions 33 | . 33 . Melee . | . . . Knockbacks . | . . . Impact . | . . . Kinetic . | . . . Secondary . | . . . Self-Inflicted Damage 45 | . 45 . Shots 2 | . 2 . Rammed . | . . . Targets Rammed . | . . . Kicked . | . . . Crushed . | . . . Highest Temperature 237 | . 237 12 Average Temperature 24 | . 26 6 Received Heat Transfer 534 | . 480 54 Siege Activations . | . . . Robots Corrupted . | . . . Combat Hostiles . | . . . Parts Fried 1 | . . 1 Impact Corruptions . | . . . Robots Melted . | . . . Combat Hostiles . | . . . Parts Melted . | . . . Heat Transferred 50 | . 50 . Parts Sabotaged . | . . . Parts Stolen . | . . . Parts Stripped . | . . . Power Chain Reactions 1 | . 1 . Alert | -11 -10 -10 ------- Run | Yrd Mat Min Peak Influence 350 | . 350 140 Initial 63 | . . 63 Average 126 | . 159 55 Maximum Alert Level 1 | . 1 . Low Security (%) 74 | . 63 100 Level 1 25 | . 36 . Level 2 . | . . . Level 3 . | . . . Level 4 . | . . . Level 5 . | . . . High Security . | . . . Max Security . | . . . Squads Dispatched 5 | . 4 1 Investigation 3 | . 3 . Extermination . | . . . Reinforcement 1 | . 1 . Assault 1 | . . 1 Garrison . | . . . Intercept . | . . . Searches Triggered . | . . . Construction Impeded . | . . . Haulers Reinforced . | . . . Active Scanning Responses . | . . . Cargo Convoy Interrupts . | . . . Stealth | -11 -10 -10 --------- Run | Yrd Mat Min Distress Signals 2 | . 2 . Communications Jammed . | . . . Distress Signals . | . . . Times Spotted 40 | . 30 10 Peak Tracking Total 5 | . 5 5 Tactical Retreats 4 | . 2 2 Traps | -11 -10 -10 ------- Run | Yrd Mat Min Traps Triggered 5 | . 5 . Indirectly . | . . . Trap Hack Attempts . | . . . Triggered . | . . . Disarmed . | . . . Reprogrammed . | . . . Reused . | . . . Traps Extracted . | . . . Installed . | . . . Triggered 1 | . . 1 Machines | -11 -10 -10 ---------- Run | Yrd Mat Min Machines Disabled 3 | . 3 . Max in Single Turn 2 | . 2 . Machines Repaired . | . . . Machines Dismantled . | . . . Machines Sabotaged . | . . . Overloaded Fab Kills . | . . . Hacking | -11 -10 -10 --------- Run | Yrd Mat Min Machines Accessed 8 | . 8 . Terminals 7 | . 7 . Fabricators . | . . . Repair Stations . | . . . Recycling Units 1 | . 1 . Scanalyzers . | . . . Garrison Access . | . . . Total Hacks 27 | . 27 . Successful 13 | . 13 . Failed 14 | . 14 . Catastrophic . | . . . Database Lockouts . | . . . Manual 25 | . 25 . Terminals 25 | . 25 . Fabricators . | . . . Repair Stations . | . . . Recycling Units 2 | . 2 . Scanalyzers . | . . . Garrison Access . | . . . Terminal Hacks 2 | . 2 . Robot Analysis 2 | . 2 . Fabricator Hacks . | . . . Repair Station Hacks . | . . . Recycling Unit Hacks 1 | . 1 . Retrieve Components 1 | . 1 . Scanalyzer . | . . . Garrison Access Hacks . | . . . Unauthorized Hacks 10 | . 10 . Terminals 9 | . 9 . Assimilate 1 | . 1 . Botnet 6 | . 6 . Operators 1 | . 1 . Skim 1 | . 1 . Fabricators . | . . . Repair Stations . | . . . Recycling Units 1 | . 1 . Tunnel 1 | . 1 . Scanalyzers . | . . . Garrison Access . | . . . Data Cores Recovered . | . . . Used . | . . . Hacking Detections 7 | . 7 . Full Trace Events 1 | . 1 . Feedback Events 1 | . 1 . Corruption 1 | . 1 . Feedback Blocked . | . . . Robot Schematics Acquired . | . . . Robots Built . | . . . Authchips . | . . . Time . | . . . Total Robot Build Rating . | . . . Part Schematics Acquired . | . . . Parts Built . | . . . Authchips . | . . . Time . | . . . Total Part Build Rating . | . . . Parts Repaired . | . . . Time . | . . . Parts Recycled . | . . . Recycled Matter . | . . . Retrieved Matter . | . . . Retrieved Components 9 | . 9 . Parts Scanalyzed . | . . . Part Schematics Acquired . | . . . Parts Damaged . | . . . Bothacking | -11 -10 -10 ------------ Run | Yrd Mat Min Used RIF Installer . | . . . Robots Hacked . | . . . Non-combat . | . . . Combat . | . . . Robot Hacks Applied . | . . . Relay Couplers Released . | . . . Fabnet Peak Effective % . | . . . Robots Rewired . | . . . Allies Hacked . | . . . Hacks Repelled . | . . . Allies | -11 -10 -10 -------- Run | Yrd Mat Min Total Allies 1 | . . 1 Largest Group 1 | . . 1 Highest-Rated Group 31 | . . 31 Highest-Rated Ally 31 | . . 31 Total Orders . | . . . Ally Attacks 10 | . . 10 Total Damage 127 | . . 127 Kills 2 | . . 2 Allies Corrupted . | . . . Allies Melted . | . . . Intel | -11 -10 -10 ------- Run | Yrd Mat Min Robot Analysis Total 2 | . 2 . Derelict Logs Recovered . | . . . Drone Launches . | . . . Drone Recoveries . | . . . Exploration | -11 -10 -10 ------------- Run | Yrd Mat Min Turns Passed 2794 | . 1921 873 Spaces Moved 1097 | 1 855 241 Core 31 | . 31 . Treads 386 | . 386 . Legs 285 | 1 43 241 Wheels 395 | . 395 . Hover . | . . . Flight . | . . . Fastest Speed 90 | 120 90 330 Average Speed 200 | 120 163 330 Slowest Speed 330 | 120 330 330 Overloaded Moves . | . . . Propulsion Burnouts . | . . . Robots Hopped . | . . . Cave-ins Triggered . | . . . Exploration Rate (%) 52 | 2 92 62 Regions Visited 2 Branch Regions 1 Pre-discovered Areas 1 | . 1 . Known Exits Taken . | . . . Unknown Exits Taken 2 | 1 1 . Scrap Searched 1 | . . 1 Spaces Dug . | . . . Terrain Destroyed 75 | . 75 . Melee . | . . . Projectile . | . . . AOE 75 | . 75 . Terrain Rammed . | . . . Walls Destroyed . | . . . Machines Disabled . | . . . Actions | -11 -10 -10 --------- Run | Yrd Mat Min Total 1544 | . 1238 306 Wait 290 | . 235 55 Move 1095 | . 854 241 Hop . | . . . Pick Up 20 | . 18 2 Fast Attach 19 | . 19 . Attach 7 | . 7 . Detach 2 | . 2 . Swap 5 | . 5 . Drop 10 | . 10 . Fire 96 | . 88 8 Melee . | . . . Ram . | . . . Kick . | . . . Crush . | . . . Escape Stasis . | . . . Rewire . | . . . Trap . | . . . Miscellaneous . | . . . Route ------- -11/Scrapyard -10/Materials (discovered 5 exits: [*Mat x3] / [*Min x2]) -10/Mines (discovered 1 exit: [*Mat]) History --------- Turn | Location | Event 1 | -11/Scrapyard | Discovered new exit (range 0) 1 | -11/Scrapyard | Entered Materials 265 | -10/Materials | Discovered new exit (range 16) 313 | -10/Materials | Build established: Mutant 566 | -10/Materials | Discovered new exit (range 12) 701 | -10/Materials | Derelicts attacked the area 802 | -10/Materials | Discovered new exit (range 9) 941 | -10/Materials | Core integrity fell below 50% 964 | -10/Materials | Discovered new exit (range 14) 1051 | -10/Materials | Discovered new exit (range 15) 1215 | -10/Materials | Core integrity fell below 20% 1922 | -10/Materials | Entered Mines 1923 | -10/Mines | Met a Derelict testing a Signal Generator 2109 | -10/Mines | Received a Rocket Launcher from a helpful Derelict 2779 | -10/Mines | Discovered new exit (range 3) 2795 | -10/Mines | Destroyed by S-10 Pest with Light Assault Rifle Last Messages --------------- 02157_ HPOL&8ZPFA0PF4A7% 0/0HSS=4V= / UQ 02255_ K-01 Serf collects debris. 02318_ Searching scrap... 02318_ Found Sml. Laser. 02318_ Found Med. Laser. 02318_ Found 49 Matter. 02319_ Acquired 49 matter. 02348_ A derelict is hurriedly installing traps. 02350_ SS-TNI(g): "Hehe, this'll put a wrench in their mining defense operations..." 02350_ SS-TNI(g) slips into the shadows. 02374_ Acquired 85 matter. 02384_ Acquired 29 matter. 02448_ System corrupted: Energy discharge (-86). 02580_ M-13 Machinist system corruption misinterpreted. 02580_ M-13 Machinist triggered Dirty Bomb Trap. 02580_ An explosion rips through the floor. 02580_ M-13 Machinist destroyed. 02779_ EXIT=FOUND 02788_ G-34 Mercenary destroyed. 02788_ Switching to secondary target: S-10 Pest. Map ----- +----------------------------------------------------+ | | | | | | | | | | | | | | | | | | | | | | | | | ?????????????????????????????????????????????????? | | ?????????????????????????????????????????????????? | | ?????????????????????????????????????????????????? | | ?????????????????????????????????????????????????? | | ?????????????????????????????????????????????????? | | ?????????????????????????????????????????????????? | | ?????????????????????????????????????????????????? | | ?????????????????????????????????????????????????? | | ?????????????????????????????????????????????????? | | ?????????????????#???????????????????????????????? | | #????????????????# ?????????????????????????????? | | #????????????????# ???????????????????????????? | | #????????????????# """ =###########??????????????? | | #????????????????# """